[Event "Titled Tuesday Blitz May 24 Early 2022"]
[White "Hansch, Karsten"]
[Black "Sailer, Mike"]
[WhiteFideId "24692239"]
[BlackFideId "2012901"]
[WhiteElo "2358"]
[BlackElo "2109"]
[Result "1-0"]
[Round "03"]
[TimeControl "180+1"]
[Date "2022.05.25"]
[WhiteClock "0:02:20"]
[BlackClock "0:00:23"]

1. e4 {[%clk 0:02:58]}  d5 {[%clk 0:02:59]} 2. exd5 {[%clk 0:02:57]}  Qxd5 {[%clk 0:02:56]} 3. Nc3 {[%clk 0:02:57]}  Qd6 {[%clk 0:02:56]} 4. d4 {[%clk 0:02:58]}  Nf6 {[%clk 0:02:57]} 5. Nf3 {[%clk 0:02:56]}  c6 {[%clk 0:02:57]} 6. g3 {[%clk 0:02:55]}  Bf5 {[%clk 0:02:57]} 7. Bg2 {[%clk 0:02:53]}  e6 {[%clk 0:02:58]} 8. O-O {[%clk 0:02:53]}  Be7 {[%clk 0:02:58]} 9. Nh4 {[%clk 0:02:53]}  Bg4 {[%clk 0:02:58]} 10. Qd3 {[%clk 0:02:51]}  O-O {[%clk 0:02:51]} 11. h3 {[%clk 0:02:50]}  Bh5 {[%clk 0:02:51]} 12. g4 {[%clk 0:02:50]}  Bg6 {[%clk 0:02:48]} 13. Nxg6 {[%clk 0:02:50]}  hxg6 {[%clk 0:02:48]} 14. Be3 {[%clk 0:02:48]}  Nbd7 {[%clk 0:02:48]} 15. f4 {[%clk 0:02:47]}  Nb6 {[%clk 0:02:47]} 16. f5 {[%clk 0:02:45]}  gxf5 {[%clk 0:02:37]} 17. gxf5 {[%clk 0:02:46]}  Nbd5 {[%clk 0:02:30]} 18. Rae1 {[%clk 0:02:34]}  Nxe3 {[%clk 0:02:25]} 19. Qxe3 {[%clk 0:02:34]}  Nd5 {[%clk 0:01:25]} 20. Nxd5 {[%clk 0:02:32]}  cxd5 {[%clk 0:01:24]} 21. fxe6 {[%clk 0:02:32]}  f6 {[%clk 0:01:13]} 22. Rf5 {[%clk 0:02:26]}  Qb4 {[%clk 0:01:03]} 23. Rxd5 {[%clk 0:02:26]}  Qxb2 {[%clk 0:01:00]} 24. Rd7 {[%clk 0:02:26]}  Rfe8 {[%clk 0:00:35]} 25. Rxb7 {[%clk 0:02:22]}  Qxa2 {[%clk 0:00:27]} 26. Rxe7 {[%clk 0:02:21]}  Rxe7 {[%clk 0:00:24]} 27. Bxa8 {[%clk 0:02:20]}  Qxc2 {[%clk 0:00:23]} 28. Bg2 {[%clk 0:02:20]} 1-0


[Site "https://www.chess.com"]

[Event "Titled Tuesday Blitz May 24 Early 2022"]
[White "Hernandez Jimenez, Alexander Andres"]
[Black "Dobre, Claudiu-Cristian"]
[WhiteFideId "3900452"]
[BlackFideId "1211854"]
[WhiteElo "2098"]
[BlackElo "2207"]
[Result "0-1"]
[Round "03"]
[TimeControl "180+1"]
[Date "2022.05.25"]
[WhiteClock "0:00:01"]
[BlackClock "0:00:07"]

1. e4 {[%clk 0:02:56]}  Nc6 {[%clk 0:02:59]} 2. d4 {[%clk 0:02:55]}  d5 {[%clk 0:03:00]} 3. e5 {[%clk 0:02:52]}  Bf5 {[%clk 0:02:59]} 4. c3 {[%clk 0:02:48]}  e6 {[%clk 0:02:59]} 5. Nf3 {[%clk 0:02:48]}  h6 {[%clk 0:02:55]} 6. Bd3 {[%clk 0:02:49]}  Nge7 {[%clk 0:02:54]} 7. O-O {[%clk 0:02:49]}  a6 {[%clk 0:02:45]} 8. Re1 {[%clk 0:02:47]}  Bxd3 {[%clk 0:02:45]} 9. Qxd3 {[%clk 0:02:46]}  Nf5 {[%clk 0:02:46]} 10. Nbd2 {[%clk 0:02:41]}  Be7 {[%clk 0:02:45]} 11. Nf1 {[%clk 0:02:41]}  O-O {[%clk 0:02:45]} 12. Ng3 {[%clk 0:02:41]}  Nxg3 {[%clk 0:02:44]} 13. hxg3 {[%clk 0:02:41]}  Na5 {[%clk 0:02:40]} 14. b3 {[%clk 0:02:40]}  b6 {[%clk 0:02:38]} 15. Bb2 {[%clk 0:02:39]}  c5 {[%clk 0:02:37]} 16. c4 {[%clk 0:02:38]}  dxc4 {[%clk 0:02:34]} 17. bxc4 {[%clk 0:02:38]}  cxd4 {[%clk 0:02:29]} 18. Nxd4 {[%clk 0:02:37]}  Rc8 {[%clk 0:02:21]} 19. Rac1 {[%clk 0:02:37]}  Qc7 {[%clk 0:02:13]} 20. Ba3 {[%clk 0:02:06]}  Rfd8 {[%clk 0:02:02]} 21. Bxe7 {[%clk 0:02:03]}  Qxe7 {[%clk 0:02:02]} 22. Qe4 {[%clk 0:01:48]}  Qc7 {[%clk 0:01:42]} 23. f4 {[%clk 0:01:17]}  Nxc4 {[%clk 0:01:40]} 24. Nf3 {[%clk 0:01:07]}  b5 {[%clk 0:01:31]} 25. f5 {[%clk 0:01:06]}  exf5 {[%clk 0:01:28]} 26. Qxf5 {[%clk 0:01:06]}  Qb6+ {[%clk 0:01:20]} 27. Kh2 {[%clk 0:01:03]}  Qe6 {[%clk 0:01:20]} 28. Qxe6 {[%clk 0:00:52]}  fxe6 {[%clk 0:01:20]} 29. Red1 {[%clk 0:00:52]}  Rxd1 {[%clk 0:01:00]} 30. Rxd1 {[%clk 0:00:52]}  Rc5 {[%clk 0:01:00]} 31. Rd6 {[%clk 0:00:49]}  Nxe5 {[%clk 0:00:58]} 32. Rxa6 {[%clk 0:00:37]}  Ng4+ {[%clk 0:00:57]} 33. Kh3 {[%clk 0:00:31]}  Nf2+ {[%clk 0:00:38]} 34. Kh2 {[%clk 0:00:28]}  e5 {[%clk 0:00:36]} 35. Kg1 {[%clk 0:00:10]}  Ng4 {[%clk 0:00:32]} 36. Kf1 {[%clk 0:00:10]}  e4 {[%clk 0:00:31]} 37. Nd4 {[%clk 0:00:08]}  Kf7 {[%clk 0:00:18]} 38. Ke2 {[%clk 0:00:08]}  b4 {[%clk 0:00:14]} 39. Rb6 {[%clk 0:00:06]}  Rc4 {[%clk 0:00:13]} 40. Nb3 {[%clk 0:00:04]}  Rc2+ {[%clk 0:00:12]} 41. Kd1 {[%clk 0:00:04]}  Ne3+ {[%clk 0:00:11]} 42. Ke1 {[%clk 0:00:03]}  Nxg2+ {[%clk 0:00:12]} 43. Kd1 {[%clk 0:00:03]}  Ne3+ {[%clk 0:00:12]} 44. Ke1 {[%clk 0:00:03]}  Rc4 {[%clk 0:00:12]} 45. Na5 {[%clk 0:00:02]}  Rc2 {[%clk 0:00:10]} 46. Rxb4 {[%clk 0:00:01]}  Ng2+ {[%clk 0:00:07]} 0-1


[Site "https://www.chess.com"]

[Event "Titled Tuesday Blitz May 24 Early 2022"]
[White "Hirneise, Jens"]
[Black "Karolczuk, Iwo"]
[WhiteFideId "24614734"]
[BlackFideId "21816972"]
[WhiteElo "2359"]
[BlackElo "2258"]
[Result "0-1"]
[Round "03"]
[TimeControl "180+1"]
[Date "2022.05.25"]
[WhiteClock "0:00:07"]
[BlackClock "0:00:05"]

1. Nf3 {[%clk 0:03:00]}  c5 {[%clk 0:02:58]} 2. c4 {[%clk 0:02:59]}  g6 {[%clk 0:02:58]} 3. Nc3 {[%clk 0:02:56]}  Bg7 {[%clk 0:02:58]} 4. d4 {[%clk 0:02:56]}  cxd4 {[%clk 0:02:54]} 5. Nxd4 {[%clk 0:02:57]}  Nc6 {[%clk 0:02:55]} 6. e3 {[%clk 0:02:54]}  Nf6 {[%clk 0:02:53]} 7. Be2 {[%clk 0:02:48]}  O-O {[%clk 0:02:53]} 8. O-O {[%clk 0:02:48]}  d5 {[%clk 0:02:53]} 9. Nxc6 {[%clk 0:02:39]}  bxc6 {[%clk 0:02:54]} 10. cxd5 {[%clk 0:02:38]}  cxd5 {[%clk 0:02:48]} 11. Bf3 {[%clk 0:02:37]}  Bb7 {[%clk 0:02:39]} 12. Qb3 {[%clk 0:02:28]}  Rb8 {[%clk 0:02:38]} 13. Rd1 {[%clk 0:02:26]}  e6 {[%clk 0:02:27]} 14. Bd2 {[%clk 0:02:16]}  Nd7 {[%clk 0:02:24]} 15. Qa3 {[%clk 0:02:10]}  Ne5 {[%clk 0:02:00]} 16. Be2 {[%clk 0:02:08]}  a6 {[%clk 0:01:39]} 17. Na4 {[%clk 0:02:00]}  Nc4 {[%clk 0:01:18]} 18. Bxc4 {[%clk 0:01:14]}  dxc4 {[%clk 0:01:19]} 19. f3 {[%clk 0:01:06]}  Qh4 {[%clk 0:01:09]} 20. Bc3 {[%clk 0:00:56]}  Bh6 {[%clk 0:00:47]} 21. Be5 {[%clk 0:00:52]}  Rbd8 {[%clk 0:00:41]} 22. Nc5 {[%clk 0:00:48]}  Bd5 {[%clk 0:00:36]} 23. e4 {[%clk 0:00:31]}  Bc6 {[%clk 0:00:36]} 24. Qc3 {[%clk 0:00:27]}  Qh5 {[%clk 0:00:22]} 25. Bd4 {[%clk 0:00:16]}  Bf4 {[%clk 0:00:16]} 26. g3 {[%clk 0:00:15]}  Bd6 {[%clk 0:00:13]} 27. Nxa6 {[%clk 0:00:14]}  Qh3 {[%clk 0:00:11]} 28. Bf2 {[%clk 0:00:13]}  Bb5 {[%clk 0:00:10]} 29. Nc5 {[%clk 0:00:11]}  Qh5 {[%clk 0:00:10]} 30. Nb7 {[%clk 0:00:09]}  Be5 {[%clk 0:00:07]} 31. Qa5 {[%clk 0:00:07]}  Rxd1+ {[%clk 0:00:05]} 32. Rxd1 {[%clk 0:00:08]}  Bxb2 {[%clk 0:00:05]} 33. Nd6 {[%clk 0:00:04]}  Qxf3 {[%clk 0:00:04]} 34. Qxb5 {[%clk 0:00:02]}  Qxd1+ {[%clk 0:00:03]} 35. Kg2 {[%clk 0:00:03]}  c3 {[%clk 0:00:03]} 36. Nc4 {[%clk 0:00:02]}  c2 {[%clk 0:00:03]} 37. Nxb2 {[%clk 0:00:03]}  Qd2 {[%clk 0:00:02]} 38. Nd3 {[%clk 0:00:02]}  Qxd3 {[%clk 0:00:02]} 39. Qxd3 {[%clk 0:00:01]}  c1=Q {[%clk 0:00:03]} 40. e5 {[%clk 0:00:02]}  Qb2 {[%clk 0:00:03]} 41. Qe4 {[%clk 0:00:01]}  Qxa2 {[%clk 0:00:03]} 42. h4 {[%clk 0:00:02]}  Qd5 {[%clk 0:00:03]} 43. Qxd5 {[%clk 0:00:02]}  exd5 {[%clk 0:00:04]} 44. Kf3 {[%clk 0:00:03]}  Rc8 {[%clk 0:00:05]} 45. Bd4 {[%clk 0:00:04]}  Rc4 {[%clk 0:00:05]} 46. Ke3 {[%clk 0:00:04]}  Kf8 {[%clk 0:00:06]} 47. Kd3 {[%clk 0:00:05]}  Ke7 {[%clk 0:00:07]} 48. g4 {[%clk 0:00:05]}  Ke6 {[%clk 0:00:07]} 49. h5 {[%clk 0:00:05]}  gxh5 {[%clk 0:00:06]} 50. gxh5 {[%clk 0:00:06]}  Kf5 {[%clk 0:00:07]} 51. h6 {[%clk 0:00:06]}  Rxd4+ {[%clk 0:00:05]} 52. Kxd4 {[%clk 0:00:07]}  Ke6 {[%clk 0:00:05]} 0-1


[Site "https://www.chess.com"]

[Event "Titled Tuesday Blitz May 24 Early 2022"]
[White "Ioannidis, Evgenios"]
[Black "Boyer, Mahel"]
[WhiteFideId "4229274"]
[BlackFideId "45102422"]
[WhiteElo "2254"]
[BlackElo "2328"]
[Result "0-1"]
[Round "03"]
[TimeControl "180+1"]
[Date "2022.05.25"]
[WhiteClock "0:00:06"]
[BlackClock "0:00:06"]

1. d4 {[%clk 0:03:00]}  Nf6 {[%clk 0:02:54]} 2. c4 {[%clk 0:03:00]}  g6 {[%clk 0:02:54]} 3. Nc3 {[%clk 0:03:00]}  d5 {[%clk 0:02:54]} 4. Nxd5 {[%clk 0:03:00]}  Nxd5 {[%clk 0:02:55]} 5. cxd5 {[%clk 0:03:00]}  Qxd5 {[%clk 0:02:51]} 6. Nf3 {[%clk 0:03:00]}  Bg7 {[%clk 0:02:47]} 7. b3 {[%clk 0:02:56]}  c5 {[%clk 0:02:44]} 8. Bb2 {[%clk 0:02:55]}  Nc6 {[%clk 0:02:42]} 9. e3 {[%clk 0:02:54]}  cxd4 {[%clk 0:02:40]} 10. Nxd4 {[%clk 0:02:43]}  Bd7 {[%clk 0:01:25]} 11. Rc1 {[%clk 0:01:22]}  Qa5+ {[%clk 0:00:26]} 12. Qd2 {[%clk 0:01:21]}  Qxd2+ {[%clk 0:00:21]} 13. Kxd2 {[%clk 0:01:21]}  O-O-O {[%clk 0:00:15]} 14. Bb5 {[%clk 0:00:57]}  Kb8 {[%clk 0:00:11]} 15. Bxc6 {[%clk 0:00:20]}  Bxc6 {[%clk 0:00:09]} 16. Ke2 {[%clk 0:00:20]}  Bxg2 {[%clk 0:00:05]} 17. Rhd1 {[%clk 0:00:21]}  e5 {[%clk 0:00:03]} 18. Nb5 {[%clk 0:00:19]}  a6 {[%clk 0:00:01]} 19. Nd6 {[%clk 0:00:17]}  Rd7 {[%clk 0:00:02]} 20. Nc4 {[%clk 0:00:14]}  Re7 {[%clk 0:00:01]} 21. f3 {[%clk 0:00:13]}  Bh3 {[%clk 0:00:01]} 22. e4 {[%clk 0:00:13]}  Bd7 {[%clk 0:00:01]} 23. Rd5 {[%clk 0:00:12]}  Bc6 {[%clk 0:00:01]} 24. Rc5 {[%clk 0:00:13]}  Rhe8 {[%clk 0:00:01]} 25. a4 {[%clk 0:00:12]}  f6 {[%clk 0:00:01]} 26. Na5 {[%clk 0:00:12]}  Bd7 {[%clk 0:00:01]} 27. Ba3 {[%clk 0:00:12]}  Be6 {[%clk 0:00:02]} 28. R5c3 {[%clk 0:00:09]}  Rd7 {[%clk 0:00:02]} 29. Rd1 {[%clk 0:00:10]}  Red8 {[%clk 0:00:03]} 30. Rxd7 {[%clk 0:00:09]}  Rxd7 {[%clk 0:00:03]} 31. b4 {[%clk 0:00:07]}  Bh6 {[%clk 0:00:04]} 32. Rd3 {[%clk 0:00:06]}  Rxd3 {[%clk 0:00:03]} 33. Kxd3 {[%clk 0:00:07]}  Bf8 {[%clk 0:00:04]} 34. Nc4 {[%clk 0:00:04]}  b5 {[%clk 0:00:02]} 35. axb5 {[%clk 0:00:04]}  axb5 {[%clk 0:00:02]} 36. Ne3 {[%clk 0:00:05]}  Kc7 {[%clk 0:00:02]} 37. Kc3 {[%clk 0:00:05]}  Kc6 {[%clk 0:00:03]} 38. Bc1 {[%clk 0:00:06]}  f5 {[%clk 0:00:03]} 39. Nc2 {[%clk 0:00:05]}  Bd6 {[%clk 0:00:02]} 40. Bg5 {[%clk 0:00:04]}  Bc7 {[%clk 0:00:02]} 41. Bf6 {[%clk 0:00:05]}  Kd7 {[%clk 0:00:02]} 42. Ne3 {[%clk 0:00:05]}  Ke8 {[%clk 0:00:02]} 43. exf5 {[%clk 0:00:05]}  gxf5 {[%clk 0:00:03]} 44. Nd5 {[%clk 0:00:05]}  Bxd5 {[%clk 0:00:03]} 45. Bg5 {[%clk 0:00:06]}  Bxf3 {[%clk 0:00:04]} 46. Be3 {[%clk 0:00:06]}  Kd7 {[%clk 0:00:04]} 47. Bc5 {[%clk 0:00:06]}  Bd5 {[%clk 0:00:05]} 48. Kd3 {[%clk 0:00:06]}  Bd6 {[%clk 0:00:06]} 0-1


[Site "https://www.chess.com"]

[Event "Titled Tuesday Blitz May 24 Early 2022"]
[White "Izzat, Kanan"]
[Black "Zhigalko, Sergei"]
[WhiteFideId "13405209"]
[BlackFideId "13502956"]
[WhiteElo "2362"]
[BlackElo "2662"]
[Result "0-1"]
[Round "03"]
[TimeControl "180+1"]
[Date "2022.05.24"]
[WhiteClock "0:00:07"]
[BlackClock "0:00:08"]

1. e4 {[%clk 0:02:59]}  c5 {[%clk 0:02:57]} 2. c3 {[%clk 0:02:57]}  Nf6 {[%clk 0:02:57]} 3. e5 {[%clk 0:02:57]}  Nd5 {[%clk 0:02:58]} 4. Nf3 {[%clk 0:02:56]}  Nc6 {[%clk 0:02:58]} 5. d4 {[%clk 0:02:55]}  cxd4 {[%clk 0:02:57]} 6. Bc4 {[%clk 0:02:31]}  Nb6 {[%clk 0:02:57]} 7. Bb3 {[%clk 0:02:32]}  g6 {[%clk 0:02:57]} 8. cxd4 {[%clk 0:02:31]}  Bg7 {[%clk 0:02:57]} 9. O-O {[%clk 0:02:31]}  O-O {[%clk 0:02:57]} 10. Nc3 {[%clk 0:02:29]}  d5 {[%clk 0:02:54]} 11. h3 {[%clk 0:02:26]}  Bf5 {[%clk 0:02:54]} 12. Be3 {[%clk 0:02:24]}  Rc8 {[%clk 0:02:54]} 13. Rc1 {[%clk 0:02:24]}  Na5 {[%clk 0:02:46]} 14. Bc2 {[%clk 0:02:20]}  Bxc2 {[%clk 0:02:45]} 15. Rxc2 {[%clk 0:02:20]}  Nbc4 {[%clk 0:02:42]} 16. Bc1 {[%clk 0:02:19]}  Nc6 {[%clk 0:02:41]} 17. b3 {[%clk 0:02:17]}  Nb6 {[%clk 0:02:34]} 18. Ba3 {[%clk 0:02:17]}  Qd7 {[%clk 0:02:31]} 19. Re1 {[%clk 0:02:16]}  Nd8 {[%clk 0:02:18]} 20. Ne2 {[%clk 0:02:01]}  Ne6 {[%clk 0:02:16]} 21. Bb4 {[%clk 0:01:58]}  Bh6 {[%clk 0:02:09]} 22. a4 {[%clk 0:01:55]}  Rxc2 {[%clk 0:02:08]} 23. Qxc2 {[%clk 0:01:55]}  Rc8 {[%clk 0:02:09]} 24. Qb2 {[%clk 0:01:55]}  Rc6 {[%clk 0:01:38]} 25. Bd2 {[%clk 0:01:54]}  Bxd2 {[%clk 0:01:28]} 26. Qxd2 {[%clk 0:01:54]}  Qc7 {[%clk 0:01:26]} 27. Rc1 {[%clk 0:01:55]}  Nd7 {[%clk 0:01:08]} 28. Rxc6 {[%clk 0:01:53]}  Qxc6 {[%clk 0:01:09]} 29. Qc3 {[%clk 0:01:52]}  Nb8 {[%clk 0:01:07]} 30. Qb4 {[%clk 0:01:41]}  Kf8 {[%clk 0:00:51]} 31. Ne1 {[%clk 0:01:38]}  b6 {[%clk 0:00:45]} 32. Qd2 {[%clk 0:01:26]}  a5 {[%clk 0:00:34]} 33. Nf3 {[%clk 0:01:21]}  Kg7 {[%clk 0:00:32]} 34. Nf4 {[%clk 0:01:18]}  Na6 {[%clk 0:00:24]} 35. Nxe6+ {[%clk 0:01:15]}  Qxe6 {[%clk 0:00:25]} 36. g4 {[%clk 0:01:06]}  Qc6 {[%clk 0:00:21]} 37. Qf4 {[%clk 0:01:02]}  h6 {[%clk 0:00:19]} 38. h4 {[%clk 0:00:49]}  Nb4 {[%clk 0:00:19]} 39. Kg2 {[%clk 0:00:43]}  Nd3 {[%clk 0:00:03]} 40. Qe3 {[%clk 0:00:43]}  Qc2 {[%clk 0:00:03]} 41. h5 {[%clk 0:00:37]}  g5 {[%clk 0:00:03]} 42. Kg3 {[%clk 0:00:09]}  Nf4 {[%clk 0:00:03]} 43. e6 {[%clk 0:00:04]}  f6 {[%clk 0:00:03]} 44. Ne1 {[%clk 0:00:02]}  Qe2 {[%clk 0:00:02]} 45. Qxe2 {[%clk 0:00:02]}  Nxe2+ {[%clk 0:00:03]} 46. Kg2 {[%clk 0:00:02]}  Nxd4 {[%clk 0:00:04]} 47. Nd3 {[%clk 0:00:03]}  Nxe6 {[%clk 0:00:04]} 48. Kf3 {[%clk 0:00:04]}  Nc5 {[%clk 0:00:04]} 49. Nc1 {[%clk 0:00:04]}  e5 {[%clk 0:00:04]} 50. Ke3 {[%clk 0:00:05]}  Kf7 {[%clk 0:00:05]} 51. f3 {[%clk 0:00:05]}  Ke6 {[%clk 0:00:05]} 52. Kd2 {[%clk 0:00:05]}  f5 {[%clk 0:00:06]} 53. Ke3 {[%clk 0:00:06]}  fxg4 {[%clk 0:00:06]} 54. fxg4 {[%clk 0:00:06]}  d4+ {[%clk 0:00:06]} 55. Kf3 {[%clk 0:00:06]}  e4+ {[%clk 0:00:07]} 56. Kg3 {[%clk 0:00:07]}  Kd5 {[%clk 0:00:08]} 0-1


[Site "https://www.chess.com"]

[Event "Titled Tuesday Blitz May 24 Early 2022"]
[White "Jakubowska, Anna"]
[Black "Janaszak, Dawid"]
[WhiteFideId "1121952"]
[BlackFideId "1119206"]
[WhiteElo "1878"]
[BlackElo "2199"]
[Result "1-0"]
[Round "03"]
[TimeControl "180+1"]
[Date "2022.05.25"]
[WhiteClock "0:00:02"]
[BlackClock "0:00:06"]

1. e4 {[%clk 0:03:00]}  g6 {[%clk 0:03:00]} 2. d4 {[%clk 0:03:00]}  Bg7 {[%clk 0:03:00]} 3. Nc3 {[%clk 0:03:00]}  a6 {[%clk 0:02:59]} 4. a4 {[%clk 0:02:59]}  d6 {[%clk 0:02:57]} 5. g3 {[%clk 0:02:58]}  Nd7 {[%clk 0:02:57]} 6. Bg2 {[%clk 0:02:58]}  Ngf6 {[%clk 0:02:57]} 7. Nge2 {[%clk 0:02:58]}  O-O {[%clk 0:02:57]} 8. O-O {[%clk 0:02:58]}  e5 {[%clk 0:02:58]} 9. h3 {[%clk 0:02:58]}  Re8 {[%clk 0:02:56]} 10. Be3 {[%clk 0:02:57]}  b6 {[%clk 0:02:55]} 11. g4 {[%clk 0:02:41]}  Bb7 {[%clk 0:02:53]} 12. Ng3 {[%clk 0:02:41]}  exd4 {[%clk 0:02:33]} 13. Bxd4 {[%clk 0:02:40]}  c5 {[%clk 0:02:26]} 14. Be3 {[%clk 0:02:38]}  Ne5 {[%clk 0:02:26]} 15. g5 {[%clk 0:02:30]}  Nfd7 {[%clk 0:02:26]} 16. Qe2 {[%clk 0:01:59]}  Nc6 {[%clk 0:02:19]} 17. Rad1 {[%clk 0:01:29]}  Nd4 {[%clk 0:02:19]} 18. Qd2 {[%clk 0:01:27]}  Ne5 {[%clk 0:02:17]} 19. Bxd4 {[%clk 0:01:18]}  cxd4 {[%clk 0:02:17]} 20. Nd5 {[%clk 0:01:16]}  Nc4 {[%clk 0:02:08]} 21. Qf4 {[%clk 0:01:11]}  Nxb2 {[%clk 0:01:42]} 22. Rb1 {[%clk 0:01:08]}  Nxa4 {[%clk 0:01:34]} 23. Nf6+ {[%clk 0:01:06]}  Bxf6 {[%clk 0:01:30]} 24. gxf6 {[%clk 0:01:07]}  Nc3 {[%clk 0:01:16]} 25. Rb4 {[%clk 0:01:00]}  Re6 {[%clk 0:01:11]} 26. Rxd4 {[%clk 0:00:52]}  Qxf6 {[%clk 0:01:08]} 27. Qd2 {[%clk 0:00:51]}  Rc8 {[%clk 0:01:04]} 28. e5 {[%clk 0:00:46]}  dxe5 {[%clk 0:00:50]} 29. Bxb7 {[%clk 0:00:46]}  exd4 {[%clk 0:00:43]} 30. Bxc8 {[%clk 0:00:45]}  Rc6 {[%clk 0:00:40]} 31. Bg4 {[%clk 0:00:42]}  h5 {[%clk 0:00:36]} 32. Be2 {[%clk 0:00:36]}  a5 {[%clk 0:00:34]} 33. Bd3 {[%clk 0:00:33]}  Re6 {[%clk 0:00:30]} 34. Re1 {[%clk 0:00:32]}  a4 {[%clk 0:00:30]} 35. Rxe6 {[%clk 0:00:29]}  Qxe6 {[%clk 0:00:31]} 36. Qg5 {[%clk 0:00:27]}  a3 {[%clk 0:00:23]} 37. Nxh5 {[%clk 0:00:24]}  a2 {[%clk 0:00:20]} 38. Nf6+ {[%clk 0:00:13]}  Kf8 {[%clk 0:00:16]} 39. Qh6+ {[%clk 0:00:13]}  Ke7 {[%clk 0:00:16]} 40. Ng8+ {[%clk 0:00:13]}  Kd6 {[%clk 0:00:15]} 41. Qf8+ {[%clk 0:00:12]}  Kc7 {[%clk 0:00:15]} 42. Qa8 {[%clk 0:00:11]}  Qe1+ {[%clk 0:00:15]} 43. Kg2 {[%clk 0:00:11]}  a1=Q {[%clk 0:00:16]} 44. Qf8 {[%clk 0:00:07]}  Qh1+ {[%clk 0:00:14]} 45. Kg3 {[%clk 0:00:08]}  Qag1+ {[%clk 0:00:14]} 46. Kh4 {[%clk 0:00:08]}  Qxf2+ {[%clk 0:00:14]} 47. Kg5 {[%clk 0:00:08]}  Qhg2+ {[%clk 0:00:12]} 48. Kh6 {[%clk 0:00:07]}  Qxh3+ {[%clk 0:00:11]} 49. Kg7 {[%clk 0:00:08]}  Qd7 {[%clk 0:00:11]} 50. Nf6 {[%clk 0:00:07]}  Qe6 {[%clk 0:00:10]} 51. Ne8+ {[%clk 0:00:05]}  Kb7 {[%clk 0:00:09]} 52. Ba6+ {[%clk 0:00:02]}  Ka7 {[%clk 0:00:07]} 53. Nc7 {[%clk 0:00:02]}  Qff6+ {[%clk 0:00:06]} 54. Kg8 {[%clk 0:00:02]} 1-0


[Site "https://www.chess.com"]

[Event "Titled Tuesday Blitz May 24 Early 2022"]
[White "Kalogridis, Antonios"]
[Black "Kucuksari, Kaan"]
[WhiteFideId "25833901"]
[BlackFideId "6380166"]
[WhiteElo "1596"]
[BlackElo "2305"]
[Result "1-0"]
[Round "03"]
[TimeControl "180+1"]
[Date "2022.05.25"]
[WhiteClock "0:01:45"]
[BlackClock "0:00:28"]

1. e4 {[%clk 0:03:00]}  c5 {[%clk 0:02:59]} 2. Nf3 {[%clk 0:03:01]}  Nc6 {[%clk 0:02:58]} 3. d4 {[%clk 0:03:01]}  cxd4 {[%clk 0:02:59]} 4. Nxd4 {[%clk 0:03:02]}  e5 {[%clk 0:02:58]} 5. Nb5 {[%clk 0:03:01]}  d6 {[%clk 0:02:58]} 6. c4 {[%clk 0:03:02]}  f5 {[%clk 0:02:54]} 7. N1c3 {[%clk 0:03:00]}  f4 {[%clk 0:02:52]} 8. Nd5 {[%clk 0:02:58]}  Nf6 {[%clk 0:02:50]} 9. Nbc7+ {[%clk 0:02:54]}  Kf7 {[%clk 0:02:50]} 10. Nxa8 {[%clk 0:02:54]}  Nxd5 {[%clk 0:02:49]} 11. cxd5 {[%clk 0:02:49]}  Nd4 {[%clk 0:02:49]} 12. Bxf4 {[%clk 0:02:49]}  Bd7 {[%clk 0:02:33]} 13. Be3 {[%clk 0:02:47]}  Qxa8 {[%clk 0:02:31]} 14. Bxd4 {[%clk 0:02:46]}  exd4 {[%clk 0:02:32]} 15. Bd3 {[%clk 0:02:44]}  g6 {[%clk 0:02:30]} 16. O-O {[%clk 0:02:43]}  Bg7 {[%clk 0:02:30]} 17. f4 {[%clk 0:02:44]}  Rf8 {[%clk 0:02:18]} 18. e5 {[%clk 0:02:41]}  Kg8 {[%clk 0:02:18]} 19. e6 {[%clk 0:02:40]}  Be8 {[%clk 0:02:17]} 20. Rc1 {[%clk 0:02:38]}  Qd8 {[%clk 0:02:16]} 21. Qe2 {[%clk 0:02:36]}  Qe7 {[%clk 0:02:13]} 22. g3 {[%clk 0:02:30]}  a6 {[%clk 0:02:08]} 23. h4 {[%clk 0:02:30]}  Kh8 {[%clk 0:02:03]} 24. Kg2 {[%clk 0:02:28]}  Rg8 {[%clk 0:02:00]} 25. Rc4 {[%clk 0:02:17]}  Bb5 {[%clk 0:01:56]} 26. Rc2 {[%clk 0:02:15]}  Bxd3 {[%clk 0:01:51]} 27. Qxd3 {[%clk 0:02:16]}  Qd8 {[%clk 0:01:43]} 28. Rfc1 {[%clk 0:02:05]}  Qa5 {[%clk 0:01:42]} 29. Qe4 {[%clk 0:02:05]}  d3 {[%clk 0:01:30]} 30. Qxd3 {[%clk 0:01:59]}  h5 {[%clk 0:01:17]} 31. Rc8 {[%clk 0:01:54]}  Qxa2 {[%clk 0:00:51]} 32. e7 {[%clk 0:01:44]}  Qxb2+ {[%clk 0:00:49]} 33. R1c2 {[%clk 0:01:41]}  Rxc8 {[%clk 0:00:31]} 34. Rxb2 {[%clk 0:01:41]}  Bxb2 {[%clk 0:00:32]} 35. Qxg6 {[%clk 0:01:41]}  Bg7 {[%clk 0:00:26]} 36. e8=Q+ {[%clk 0:01:40]}  Rxe8 {[%clk 0:00:27]} 37. Qxe8+ {[%clk 0:01:41]}  Kh7 {[%clk 0:00:28]} 38. Qxh5+ {[%clk 0:01:41]}  Kg8 {[%clk 0:00:28]} 39. Qf5 {[%clk 0:01:42]}  a5 {[%clk 0:00:28]} 40. Qc8+ {[%clk 0:01:43]}  Kh7 {[%clk 0:00:28]} 41. Qxb7 {[%clk 0:01:44]}  a4 {[%clk 0:00:28]} 42. Qa6 {[%clk 0:01:45]} 1-0


[Site "https://www.chess.com"]

[Event "Titled Tuesday Blitz May 24 Early 2022"]
[White "Kholin, Aleksandr"]
[Black "Stanisz, Patryk"]
[WhiteFideId "14179385"]
[BlackFideId "1123106"]
[WhiteElo "2481"]
[BlackElo "1833"]
[Result "1-0"]
[Round "03"]
[TimeControl "180+1"]
[Date "2022.05.25"]
[WhiteClock "0:00:10"]
[BlackClock "0:00:01"]

1. d4 {[%clk 0:02:59]}  d5 {[%clk 0:02:59]} 2. c4 {[%clk 0:02:58]}  c6 {[%clk 0:02:59]} 3. Nf3 {[%clk 0:02:58]}  Nf6 {[%clk 0:02:58]} 4. Nc3 {[%clk 0:02:58]}  e6 {[%clk 0:02:56]} 5. e3 {[%clk 0:02:57]}  Nbd7 {[%clk 0:02:56]} 6. Qc2 {[%clk 0:02:57]}  Bd6 {[%clk 0:02:52]} 7. Bd3 {[%clk 0:02:57]}  O-O {[%clk 0:02:51]} 8. O-O {[%clk 0:02:56]}  dxc4 {[%clk 0:02:52]} 9. Bxc4 {[%clk 0:02:57]}  e5 {[%clk 0:02:50]} 10. Rd1 {[%clk 0:02:50]}  Qe7 {[%clk 0:02:47]} 11. h3 {[%clk 0:02:38]}  b5 {[%clk 0:02:40]} 12. Bb3 {[%clk 0:02:31]}  Bb7 {[%clk 0:02:33]} 13. dxe5 {[%clk 0:02:14]}  Nxe5 {[%clk 0:02:34]} 14. Nd4 {[%clk 0:02:13]}  g6 {[%clk 0:02:20]} 15. a4 {[%clk 0:01:41]}  b4 {[%clk 0:02:18]} 16. Nce2 {[%clk 0:01:41]}  a6 {[%clk 0:01:57]} 17. Ng3 {[%clk 0:01:22]}  Rad8 {[%clk 0:00:59]} 18. f4 {[%clk 0:01:20]}  c5 {[%clk 0:00:43]} 19. fxe5 {[%clk 0:01:15]}  Qxe5 {[%clk 0:00:43]} 20. Nde2 {[%clk 0:01:06]}  Ne4 {[%clk 0:00:44]} 21. Rxd6 {[%clk 0:00:57]}  Nxd6 {[%clk 0:00:30]} 22. e4 {[%clk 0:00:21]}  c4 {[%clk 0:00:25]} 23. Bf4 {[%clk 0:00:13]}  Qc5+ {[%clk 0:00:19]} 24. Kh2 {[%clk 0:00:13]}  Rc8 {[%clk 0:00:17]} 25. Bxd6 {[%clk 0:00:13]}  Qxd6 {[%clk 0:00:17]} 26. Bxc4 {[%clk 0:00:13]}  h5 {[%clk 0:00:17]} 27. b3 {[%clk 0:00:14]}  h4 {[%clk 0:00:17]} 28. Re1 {[%clk 0:00:14]}  hxg3+ {[%clk 0:00:17]} 29. Nxg3 {[%clk 0:00:15]}  Qf4 {[%clk 0:00:15]} 30. Qe2 {[%clk 0:00:13]}  a5 {[%clk 0:00:12]} 31. Rf1 {[%clk 0:00:13]}  Qe5 {[%clk 0:00:12]} 32. Qg4 {[%clk 0:00:13]}  Kg7 {[%clk 0:00:12]} 33. Kh1 {[%clk 0:00:10]}  Rcd8 {[%clk 0:00:12]} 34. Nf5+ {[%clk 0:00:11]}  Kh8 {[%clk 0:00:01]} 35. Qh4+ {[%clk 0:00:10]}  Kg8 {[%clk 0:00:01]} 36. Ne7+ {[%clk 0:00:10]} 1-0


[Site "https://www.chess.com"]